bitfinex/quotes_ETHUSD_20240610
["timestamp","ask_amount","ask_price","bid_price","bid_amount"]
[1718015213677,7.37,3671.6,3671.5,0.8]
[1718015214873,7.5565565,3671.6,3671.5,0.8]
[1718015215161,7.37,3671.6,3671.5,0.8]
[1718015215585,7.37,3671.6,3671.5,3.52368]
[1718015215790,7.37,3671.6,3671.5,6.52368]
[1718015218559,7.5565565,3671.6,3671.5,6.52368]
[1718015218894,7.37,3671.6,3671.5,6.52368]
[1718015220209,7.37,3671.6,3671.5,5.72368]
[1718015220360,7.37,3671.6,3671.5,6.52368]
[1718015222182,7.5565873,3671.6,3671.5,6.52368]
[1718015222491,7.37,3671.6,3671.5,6.52368]
[1718015223475,10.0510873,3671.6,3671.5,6.52368]
[1718015230273,8.56169603,3671.6,3671.5,3.0]
[1718015230623,8.56169603,3671.6,3671.2,37.72383]
[1718015230624,2.4224,3671.5,3671.3,3.8]
[1718015230786,7.37,3671.4,3671.3,3.8]
[1718015230981,7.55651687,3671.4,3671.3,3.0]
[1718015231186,8.65492647,3671.4,3671.1,0.8]
[1718015231371,8.4684096,3671.4,3671.1,0.8]
[1718015231576,0.18651687,3671.3,3671.1,0.8]
[1718015231770,7.37,3671.2,3671.1,0.8]
[1718015232205,7.55651687,3671.2,3671.1,0.8]
[1718015232410,7.55651687,3671.2,3671.1,3.8]
[1718015233218,7.55651687,3671.2,3671.1,0.8]
[1718015233412,2.4964,3671.1,3670.6,2.72429]
[1718015233631,7.37,3671.0,3670.6,3.52429]
[1718015233804,7.55612497,3671.0,3670.6,3.52429]
[1718015233975,2.4964,3670.9,3670.4,0.8]
[1718015234176,7.37,3670.8,3670.4,0.8]
[1718015234716,0.18612497,3670.7,3670.4,0.8]
[1718015234922,7.37,3670.6,3670.4,0.8]
[1718015235217,7.37,3670.6,3670.4,3.8]
[1718015235392,0.18590034,3670.5,3670.4,3.8]
[1718015235593,7.55590034,3670.5,3670.4,3.8]
[1718015237121,7.55590034,3670.5,3670.4,3.0]
[1718015237285,7.55590034,3670.5,3670.4,3.8]
[1718015242389,7.55590034,3670.5,3670.3,2.72452]
[1718015242593,10.52459003,3670.5,3670.4,0.8]
[1718015242807,10.71053,3670.5,3670.4,0.8]
[1718015243001,10.71053,3670.5,3670.3,2.72452]
[1718015243210,10.71053,3670.5,3670.4,0.8]
[1718015244832,10.71053,3670.5,3670.2,3.0]
[1718015245024,10.71053,3670.5,3670.4,0.8]
[1718015245840,2.2974,3670.4,3670.1,2.03615346]
[1718015246045,7.55569771,3670.3,3670.1,2.03615346]
[1718015247293,2.72464,3670.2,3670.1,2.03615346]
[1718015247497,10.28027163,3670.2,3670.1,2.03615346]
[1718015250042,12.62307163,3670.2,3670.1,2.03615346]
[1718015250204,14.0680431,3670.2,3670.1,2.03615346]
[1718015269775,7.55563163,3670.2,3670.1,2.03615346]
[1718015274984,7.55563163,3670.2,3670.1,2.83615346]
[1718015275482,7.37,3670.2,3670.1,2.83615346]
[1718015275678,7.55541133,3670.2,3670.1,2.83615346]
[1718015286720,7.37,3670.2,3670.1,2.83615346]
[1718015286924,7.55141955,3670.2,3670.1,2.83615346]
[1718015288636,7.55141955,3670.2,3670.1,2.03615346]
[1718015291793,7.37,3670.2,3670.1,2.03615346]
[1718015292210,7.55083828,3670.2,3670.1,2.03615346]
[1718015296139,7.55083828,3670.2,3670.1,2.83773081]
[1718015296346,7.55083828,3670.2,3670.1,8.73449302]
[1718015296347,7.37,3670.2,3670.1,8.73449302]
[1718015296549,7.54533523,3670.2,3670.1,14.45921302]
[1718015296699,7.54533523,3670.2,3670.1,49.45921302]
[1718015296906,7.37,3670.2,3670.1,49.74076836]
[1718015298725,7.37,3670.2,3670.1,52.46548836]
[1718015300759,7.37,3670.2,3670.1,51.33039081]
[1718015301253,7.37,3670.2,3670.1,52.47144508]
[1718015304069,7.37,3670.2,3670.1,51.33039081]
[1718015304223,7.37,3670.2,3670.1,52.1857131]
[1718015304824,7.37,3670.2,3670.1,51.33039081]
[1718015305840,7.37,3670.2,3670.1,46.28717081]
[1718015306065,7.37,3670.2,3670.1,12.08717081]
[1718015306228,7.37,3670.2,3670.1,11.28559346]
[1718015306869,7.37,3670.2,3670.1,13.62539346]
[1718015309966,7.37,3670.2,3670.1,48.62539346]
[1718015311014,7.37,3670.2,3670.1,51.35011346]
[1718015311711,7.37,3670.2,3670.1,52.20531823]
[1718015312273,7.37,3670.2,3670.1,51.35011346]
[1718015313510,7.37,3670.2,3670.1,52.20531823]
[1718015316717,7.37,3670.2,3670.1,51.35011346]
[1718015328506,7.37,3670.2,3670.1,52.49116773]
[1718015334455,7.37,3670.2,3670.1,51.35011346]
[1718015334920,7.37,3670.2,3670.1,52.49098019]
[1718015335367,7.37,3670.2,3670.1,51.35011346]
[1718015337366,7.37,3670.2,3670.1,52.77669199]
[1718015338262,7.37,3670.2,3670.1,52.9744132]
[1718015339386,7.37,3670.2,3670.1,51.54783467]
[1718015348559,7.37,3670.2,3670.1,49.20803467]
[1718015351873,7.37,3670.2,3670.1,49.20804282]
[1718015352580,7.37,3670.2,3670.1,46.48332282]
[1718015352783,7.37,3670.2,3670.1,46.28559346]
[1718015352944,7.37,3670.2,3670.1,46.4833332]
[1718015353637,7.37,3670.2,3670.1,46.48333506]
[1718015353842,7.37,3670.2,3670.1,46.48333416]
[1718015357176,7.37,3670.2,3670.1,46.48333406]
[1718015357690,9.6435,3670.2,3670.1,44.99061036]
[1718015357985,9.6435,3670.2,3670.1,44.41881994]
[1718015358281,9.6435,3670.2,3670.1,43.56087346]
[1718015359756,9.6435,3670.2,3670.1,44.41829263]
[1718015360574,9.6435,3670.2,3670.1,43.56087346]
[1718015363284,7.37,3670.2,3670.1,43.56087346]
[1718015369422,7.37,3670.2,3670.1,47.14301263]
[1718015371120,9.6312,3670.2,3670.1,47.14301263]
[1718015371497,7.37,3670.2,3670.1,47.14301263]
[1718015376190,7.37,3670.2,3670.1,46.34301263]
[1718015376396,7.37,3670.2,3670.1,47.14301263]
[1718015378601,7.37,3670.2,3670.1,44.41829263]
[1718015378935,9.782,3670.2,3670.1,44.41829263]
[1718015382251,7.37,3670.2,3670.1,44.41829263]
[1718015382394,7.37,3670.2,3670.1,47.14301263]
[1718015384530,7.37,3670.2,3670.1,46.28559346]
[1718015384693,7.37,3670.2,3670.1,47.14232809]
[1718015384899,7.37,3670.2,3670.1,47.14233217]
[1718015389035,7.37,3670.2,3670.1,43.61761217]
[1718015389233,7.37,3670.2,3670.1,44.41761217]
[1718015391305,7.37,3670.2,3670.1,43.56087346]
[1718015394446,7.37,3670.2,3670.1,44.70467309]
[1718015396106,7.37,3670.2,3670.1,47.42939309]
[1718015399452,7.37,3670.2,3670.1,46.28559346]
[1718015400323,7.37,3670.2,3670.1,47.42894661]
[1718015400523,7.37,3670.2,3670.1,46.28559346]
[1718015401033,7.37,3670.2,3670.1,47.42899731]
[1718015401439,7.37,3670.2,3670.1,46.28559346]
[1718015403452,7.37,3670.2,3670.1,46.4833405]
[1718015404457,7.37,3670.2,3670.1,52.31664226]
[1718015404615,7.37,3670.2,3670.1,54.03174803]
[1718015404826,7.37,3670.2,3670.1,52.31664226]
[1718015404827,1.633,3670.2,3670.1,52.31664226]
[1718015405334,2.3066,3671.3,3671.2,2.7239]
[1718015405534,2.3066,3671.3,3671.2,6.5239]
[1718015408657,10.4782,3671.3,3671.2,6.5239]
[1718015408865,10.4782,3671.3,3671.2,40.7239]
[1718015409046,10.4782,3671.3,3671.2,41.5239]
[1718015412444,10.4782,3671.3,3671.2,40.7239]
[1718015412646,10.4782,3671.3,3671.2,6.5239]
[1718015417473,8.34232914,3671.3,3671.2,6.5239]
[1718015418975,8.34232914,3671.3,3671.2,41.5239]
[1718015419266,8.1716,3671.3,3671.2,41.5239]
[1718015419473,8.34246696,3671.3,3671.2,41.5239]
[1718015419634,8.1716,3671.3,3671.2,6.5239]
[1718015419837,8.34246696,3671.3,3671.2,6.5239]
[1718015420361,8.1716,3671.3,3671.2,6.5239]
[1718015420937,10.5687,3671.3,3671.2,6.5239]
[1718015423890,10.73956696,3671.3,3671.2,41.5239]
[1718015427179,10.73956696,3671.3,3671.2,6.5239]
[1718015427859,10.5687,3671.3,3671.2,6.5239]
[1718015428062,10.73956696,3671.3,3671.2,6.5239]
[1718015432084,8.34246696,3671.3,3671.2,6.5239]
[1718015435754,8.34246696,3671.3,3671.2,41.5239]
[1718015436351,8.1716,3671.3,3671.2,41.5239]
[1718015438753,8.1716,3671.3,3671.2,6.5239]
[1718015439180,8.34255139,3671.3,3671.2,41.5239]
[1718015439495,8.1716,3671.3,3671.2,41.5239]
[1718015442518,8.1716,3671.3,3671.2,44.2478]
[1718015448416,8.1716,3671.3,3671.2,45.10493857]
[1718015450503,8.1716,3671.3,3671.2,44.2478]
[1718015452335,8.1716,3671.3,3671.2,42.66675143]
[1718015455342,8.1716,3671.3,3671.2,45.39065143]
[1718015456337,8.1716,3671.3,3671.2,48.11455143]
[1718015458744,8.1716,3671.3,3671.2,50.38955143]
[1718015460052,8.1716,3671.3,3671.2,49.99438198]
[1718015460053,7.96877566,3671.3,3671.2,49.99438198]
[1718015460207,5.99322607,3671.3,3671.2,49.99438198]
[1718015461839,5.64322607,3671.3,3671.2,49.99438198]
[1718015462221,9.5365,3672.8,3672.7,2.72279]
[1718015462424,2.2565,3672.8,3672.7,3.52279]
[1718015462625,2.42735705,3672.8,3672.7,3.52279]
[1718015463244,2.2568,3673.5,3672.9,2.72257]
[1718015463446,2.2568,3673.5,3673.2,0.8]
[1718015463647,2.2568,3673.3,3673.2,0.8]
[1718015464019,2.42791479,3673.3,3673.2,0.8]
[1718015464247,2.42791479,3673.3,3673.2,3.8]
[1718015464248,8.33831479,3673.3,3673.2,3.8]
[1718015465563,8.33831479,3673.3,3673.2,38.8]
[1718015466055,8.1672,3673.3,3673.2,38.8]
[1718015467255,8.1672,3673.3,3673.2,38.0]
[1718015467420,8.33895006,3673.3,3673.2,38.8]
[1718015471966,8.1672,3673.3,3673.2,38.8]
[1718015472166,8.1672,3673.3,3673.2,38.0]
[1718015472324,8.1672,3673.3,3673.2,38.8]
[1718015472631,8.1672,3673.3,3673.2,3.8]
[1718015473038,8.33905223,3673.3,3673.2,3.8]
[1718015473422,8.1672,3673.3,3673.2,3.8]
[1718015473623,8.1672,3673.3,3673.2,6.0686]
[1718015474435,8.3393853,3673.3,3673.2,41.0686]
[1718015474824,8.1672,3673.3,3673.2,41.0686]
[1718015480558,8.1672,3673.3,3673.2,38.8]
[1718015488592,8.1672,3673.3,3673.2,38.0]
[1718015489161,8.1672,3673.3,3673.2,38.8]
[1718015490400,8.1672,3673.3,3673.2,38.0]
[1718015490561,8.1672,3673.3,3673.2,38.8]
[1718015492053,8.1672,3673.3,3673.2,38.0]
[1718015492353,8.1672,3673.3,3673.2,38.8]
[1718015493399,8.1672,3673.3,3673.2,39.09399946]
[1718015494655,8.1672,3673.3,3673.2,38.8]
[1718015494980,8.1672,3673.3,3673.2,39.09400214]
[1718015495701,8.1672,3673.3,3673.2,38.29400214]
[1718015495880,8.1672,3673.3,3673.2,39.09400214]
[1718015498602,8.1672,3673.3,3673.2,41.55450214]
[1718015501096,8.1672,3673.3,3673.2,41.2605]
[1718015501300,8.1672,3673.3,3673.2,41.55449079]
[1718015505594,8.1672,3673.3,3673.2,42.10449079]
[1718015505908,8.1672,3673.3,3673.2,42.10448478]
[1718015507587,8.1672,3673.3,3673.2,41.8105]
[1718015507794,8.1672,3673.3,3673.2,43.24582345]
[1718015508415,8.1672,3673.3,3673.2,42.10448447]
[1718015509279,8.1672,3673.3,3673.2,43.72597131]
[1718015510388,8.1672,3673.3,3673.2,42.3018799]
[1718015511076,8.1672,3673.3,3673.2,39.2913799]
[1718015511617,8.1672,3673.3,3673.2,40.71785767]
[1718015513682,8.1672,3673.3,3673.2,40.71790798]
[1718015514515,8.1672,3673.3,3673.2,39.2913799]
[1718015514816,8.1672,3673.3,3673.2,40.71792954]
[1718015517624,8.1672,3673.3,3673.2,40.71793905]
[1718015518023,8.1672,3673.3,3673.2,39.29138941]
[1718015518938,8.1672,3673.3,3673.2,39.29138265]
[1718015519429,8.1672,3673.3,3673.2,41.73248265]
[1718015519632,8.1672,3673.3,3673.2,42.28248265]
[1718015522710,2.16351876,3673.3,3673.2,42.28248265]
[1718015523094,2.16351876,3673.3,3673.2,43.99430477]
[1718015523300,2.16351876,3673.3,3673.2,42.28248265]
[1718015524000,2.431,3674.3,3674.2,2.72168]
[1718015524202,2.431,3674.3,3674.2,3.52168]
[1718015524716,2.431,3674.3,3674.2,38.52168]
[1718015526406,2.431,3674.3,3674.2,41.52168]
[1718015527308,2.72094,3675.2,3674.7,2.72127]
[1718015527309,2.431,3675.1,3674.7,2.72127]
[1718015527534,2.431,3675.1,3674.9,0.8]
[1718015527721,2.431,3675.1,3674.9,0.7314]
[1718015527922,2.60165944,3675.0,3674.9,0.7314]
[1718015531352,2.431,3675.0,3674.8,0.8]
[1718015532646,0.17074833,3674.9,3674.8,0.8]
[1718015533249,2.431,3675.0,3674.8,0.8]
[1718015533453,2.431,3675.0,3674.7,2.72127]
[1718015535356,2.946186,3675.0,3674.4,2.72146]
[1718015535537,2.946186,3675.0,3674.5,3.0]
[1718015535851,2.3742,3674.9,3674.3,35.0]
[1718015536037,0.8,3674.6,3674.1,10.00168]
[1718015536241,2.3742,3674.4,3674.1,10.00168]
[1718015536553,10.5384,3674.3,3674.2,35.0]
[1718015536858,10.70921499,3674.3,3674.2,35.0]
[1718015549749,10.70921499,3674.3,3674.0,5.7218]
[1718015550246,10.70921499,3674.3,3674.1,35.0]
[1718015550442,10.5384,3674.3,3674.1,35.0]
[1718015550659,0.17066829,3674.2,3674.1,35.0]
[1718015550967,8.1642,3674.3,3674.1,38.0]
[1718015551165,8.1642,3674.3,3674.1,35.0]
[1718015551395,0.17066829,3674.2,3674.1,35.8]
[1718015551671,8.1642,3674.3,3674.1,38.8]
[1718015551836,0.17066829,3674.2,3674.1,38.8]
[1718015552037,8.1642,3674.3,3674.1,38.8]
[1718015552250,0.17066829,3674.2,3674.1,38.8]
[1718015552478,8.1642,3674.3,3674.1,38.8]
[1718015552787,0.17066829,3674.2,3674.1,38.8]
[1718015553138,8.1642,3674.3,3674.1,38.8]
[1718015553371,0.17071276,3674.2,3674.1,38.8]
[1718015553675,8.1642,3674.3,3674.2,2.72168]
[1718015554173,8.33488609,3674.3,3674.2,2.72168]
[1718015554362,8.33488609,3674.3,3674.2,37.72168]
[1718015554682,8.1642,3674.3,3674.2,37.72168]
[1718015557955,8.1642,3674.3,3674.2,40.72168]
[1718015558542,8.1642,3674.3,3674.2,43.00578]
[1718015563687,8.1642,3674.3,3674.2,43.80578]
[1718015570284,8.1642,3674.3,3674.2,41.52168]
[1718015570487,8.1642,3674.3,3674.2,40.72168]
[1718015570674,8.1642,3674.3,3674.2,41.52168]
[1718015573497,8.1642,3674.3,3674.2,6.52168]
[1718015573998,8.1642,3674.3,3674.2,41.52168]
[1718015590705,8.1642,3674.3,3674.2,40.72168]
[1718015590885,8.1642,3674.3,3674.2,38.0]
[1718015591285,10.6226,3674.3,3674.2,38.0]
[1718015591605,10.79349941,3674.3,3674.2,38.0]
[1718015593299,10.79349941,3674.3,3674.2,37.972]
[1718015595019,11.87284935,3674.3,3674.2,2.972]
[1718015595225,14.59445935,3674.3,3673.7,0.85544071]
[1718015595388,14.59445935,3674.3,3673.6,2.72207]
[1718015595389,14.59445935,3674.3,3673.6,4.37751071]
[1718015595587,14.59445935,3674.3,3673.8,35.0]
[1718015595819,1.53944594,3674.2,3673.9,3.0]
[1718015596121,8.33492164,3674.1,3673.9,3.0]
[1718015596320,8.33492164,3674.1,3673.7,3.8]
[1718015596623,8.33492164,3674.1,3673.8,35.0]
[1718015596804,8.33492164,3674.1,3673.9,3.0]
[1718015597194,8.33492164,3674.1,3673.7,3.8]
[1718015597392,8.33492164,3674.1,3674.0,35.0]
[1718015597645,8.33492164,3674.1,3674.0,38.0]
[1718015598890,9.8403594,3674.1,3674.0,38.0]
[1718015602424,8.33492164,3674.1,3674.0,38.0]
[1718015603990,8.33492164,3674.1,3674.0,35.0]
[1718015606498,8.33492164,3674.1,3673.6,3.8]
[1718015606900,8.33492164,3674.1,3674.0,35.0]
[1718015610727,8.1642,3674.1,3674.0,35.0]
[1718015611037,8.33491718,3674.1,3674.0,35.0]
[1718015624145,2.3485,3674.0,3673.6,3.0]
[1718015624494,2.72205,3673.7,3673.3,3.0]
[1718015624776,2.72205,3673.7,3673.1,11.65789071]
[1718015624777,10.79681614,3673.6,3673.4,35.0]
[1718015624928,10.79681614,3673.6,3673.5,3.0]
[1718015626332,12.14870275,3673.6,3673.4,35.0]
[1718015626528,14.87089275,3673.6,3673.4,35.0]
[1718015629471,14.87089275,3673.6,3673.1,8.08]
[1718015629670,14.87089275,3673.6,3673.2,3.0]
[1718015630047,14.87089275,3673.6,3673.3,35.0]
[1718015630581,13.51900614,3673.6,3673.3,35.8]
[1718015631136,13.51900614,3673.6,3673.3,35.0]
[1718015633070,11.05610614,3673.6,3673.3,35.0]
[1718015647025,8.33391614,3673.6,3673.3,35.8]
[1718015647226,8.33391614,3673.6,3673.5,0.8]
[1718015647935,8.33391614,3673.6,3673.5,35.8]
[1718015648729,8.1642,3673.6,3673.5,35.8]
[1718015649116,8.33285065,3673.6,3673.5,35.8]
[1718015650728,8.33285065,3673.6,3673.5,38.52219]
[1718015651069,8.33285065,3673.6,3673.5,41.52219]
[1718015652653,8.33285065,3673.6,3673.5,40.72219]
[1718015663032,8.33285065,3673.6,3673.5,38.0]
[1718015663359,8.1642,3673.6,3673.5,38.0]
[1718015663733,8.3328551,3673.6,3673.5,38.0]
[1718015665281,8.3328551,3673.6,3673.5,3.0]
[1718015665570,8.3328551,3673.6,3673.3,3.8]
[1718015665732,8.3328551,3673.6,3673.5,35.0]
[1718015665930,8.3328551,3673.6,3673.5,38.0]
[1718015666761,10.7269551,3673.6,3673.5,38.0]
[1718015669263,8.3328551,3673.6,3673.5,38.0]
[1718015669877,8.3328551,3673.6,3673.5,3.0]
[1718015670079,8.3328551,3673.6,3673.3,3.0]
[1718015670376,8.3328551,3673.6,3673.4,35.0]
[1718015670582,8.3328551,3673.6,3673.5,3.0]
[1718015672147,8.3328551,3673.6,3673.3,3.0]
[1718015672459,8.3328551,3673.6,3673.5,35.0]
[1718015672774,8.3328551,3673.6,3673.5,38.0]
[1718015674178,8.1642,3673.6,3673.5,38.0]
[1718015674479,8.33277054,3673.6,3673.5,38.0]
[1718015675985,8.33277054,3673.6,3673.5,40.72219]
[1718015677377,8.1642,3673.6,3673.5,43.15909]
[1718015681782,8.1642,3673.6,3673.5,43.95909]
[1718015683366,8.1642,3673.6,3673.5,44.81453071]
[1718015687573,8.1642,3673.6,3673.5,43.95909]
[1718015689376,8.1642,3673.6,3673.5,44.81453071]
[1718015689576,8.1642,3673.6,3673.5,41.57763071]
[1718015689794,8.1642,3673.6,3673.5,40.72219]
[1718015691375,8.1642,3673.6,3673.5,41.57763071]
[1718015701286,10.5484,3673.6,3673.5,38.85544071]
[1718015701668,10.71722863,3673.6,3673.5,38.0]
[1718015703318,8.33302863,3673.6,3673.5,38.0]
[1718015703629,8.33302863,3673.6,3673.5,38.8]
[1718015703836,8.33302863,3673.6,3673.5,39.65544071]
[1718015704121,8.1642,3673.6,3673.5,38.8]
[1718015708720,8.1642,3673.6,3673.5,39.65535445]
[1718015708902,8.1642,3673.6,3673.5,38.8]
[1718015709634,8.1642,3673.6,3673.5,39.94058762]
[1718015710042,8.1642,3673.6,3673.5,38.8]
[1718015710953,8.1642,3673.6,3673.5,39.94038252]
[1718015718127,8.1642,3673.6,3673.5,42.20038252]
[1718015718484,8.1642,3673.6,3673.5,41.61]
[1718015718760,8.1642,3673.6,3673.5,41.80719525]
[1718015719433,8.1642,3673.6,3673.5,41.80715779]
[1718015720356,7.83109375,3673.6,3673.5,41.80715779]
[1718015721456,7.57109375,3673.6,3673.5,41.80715779]
[1718015722454,7.57109375,3673.6,3673.5,41.61]
[1718015722619,7.57109375,3673.6,3673.5,41.80715643]
[1718015722825,7.50109375,3673.6,3673.5,41.61]
[1718015723159,7.50109375,3673.6,3673.5,41.80715639]
[1718015723326,7.01109375,3673.6,3673.5,41.80715639]
[1718015725129,6.73609375,3673.6,3673.5,41.8072134]
[1718015725661,6.71309375,3673.6,3673.5,41.8072134]
[1718015725864,6.63109375,3673.6,3673.5,41.80721435]
[1718015728371,6.38109375,3673.6,3673.5,41.80721435]
[1718015729359,6.12109375,3673.6,3673.5,41.80721435]
[1718015730062,4.61269375,3673.6,3673.5,42.08286544]
[1718015730743,2.2722,3674.8,3673.8,2.72191]
[1718015730953,2.2722,3674.8,3674.7,0.8]
[1718015731271,2.4830435,3674.8,3674.7,0.8]
[1718015731651,2.4830435,3674.8,3674.7,35.8]
[1718015731854,2.2722,3674.8,3674.7,35.8]
[1718015732245,2.2722,3674.8,3674.7,38.52131]
[1718015734780,2.2722,3674.8,3674.7,3.52131]
[1718015735153,2.4830435,3674.8,3674.7,38.52131]
[1718015735486,2.2722,3674.8,3674.7,38.52131]
[1718015736347,2.2722,3674.8,3674.7,37.72131]
[1718015737249,2.2722,3674.8,3674.7,38.52131]
[1718015740494,2.2722,3674.8,3674.7,3.52131]
[1718015740782,2.47944753,3674.8,3674.7,3.52131]
[1718015740981,2.47944753,3674.8,3674.7,38.52131]
[1718015741347,2.2722,3674.8,3674.7,38.52131]
[1718015742587,2.4339,3675.4,3674.9,2.72114]
[1718015742887,2.72077,3675.5,3674.9,2.72114]
[1718015742888,2.4339,3675.2,3674.9,2.72114]
[1718015744370,0.2072609,3675.1,3675.0,35.0]
[1718015744568,0.2072609,3675.1,3674.9,2.72114]
[1718015744869,0.2072609,3675.0,3674.9,2.72114]
[1718015745215,2.4339,3675.2,3674.9,37.72114]
[1718015745504,2.3343,3676.1,3675.2,2.72093]
[1718015745811,2.3343,3676.1,3676.0,0.8]
[1718015746307,2.3343,3676.1,3676.0,3.8]
[1718015749276,2.3343,3676.1,3676.0,38.8]
[1718015760542,2.2958,3676.8,3676.1,2.7202]
[1718015761840,5.00409,3676.9,3676.1,2.7202]
[1718015762345,8.34747438,3676.8,3676.2,35.0]
[1718015763416,8.34747438,3676.8,3676.1,2.7202]
[1718015765506,2.3591,3676.7,3676.1,2.7202]
[1718015765710,8.34747884,3676.6,3676.1,2.7202]
[1718015766525,8.34747884,3676.6,3676.2,35.0]
[1718015770329,2.3374,3676.5,3676.2,35.0]
[1718015770528,10.65586527,3676.4,3676.0,3.0]
[1718015770849,10.65586527,3676.4,3675.8,2.72044]
[1718015770850,10.65586527,3676.4,3675.9,3.0]
[1718015771147,10.65586527,3676.4,3676.0,35.0]
[1718015771351,10.65586527,3676.4,3676.1,3.0]
[1718015771649,10.4677,3676.4,3676.1,3.0]
[1718015772029,0.18816527,3676.3,3676.1,3.0]
[1718015772245,8.1599,3676.2,3676.1,3.0]
[1718015772444,4.99878,3676.1,3675.2,2.72089]
[1718015772618,2.2785,3675.9,3675.2,2.72089]
[1718015772816,2.2785,3675.7,3675.3,35.0]
[1718015773053,8.1599,3675.6,3675.3,35.0]
[1718015773211,8.34777439,3675.6,3675.3,35.0]
[1718015774112,8.34777439,3675.6,3675.4,3.0]
[1718015774547,8.34777439,3675.6,3675.3,3.0]
[1718015774848,8.34777439,3675.6,3675.4,35.0]
[1718015775149,8.34777439,3675.6,3675.5,3.0]
[1718015775817,8.34777439,3675.6,3675.0,3.8]
[1718015776020,8.34777439,3675.6,3675.2,0.8]
[1718015776325,8.34777439,3675.6,3675.2,3.8]
[1718015776531,8.1599,3675.6,3675.2,3.8]
[1718015776717,0.18777143,3675.5,3675.2,3.8]
[1718015776918,8.1599,3675.4,3675.2,3.8]
[1718015777250,8.1599,3675.4,3675.3,35.0]
[1718015777549,8.1599,3675.4,3675.3,38.0]
[1718015782232,8.34742077,3675.4,3675.3,38.0]
[1718015789040,8.34742077,3675.4,3675.3,35.0]
[1718015789041,11.73381285,3675.4,3675.3,35.0]
[1718015789239,2.72092,3675.3,3674.6,7.28]
[1718015789472,8.1599,3675.2,3674.5,3.52139]
[1718015789793,8.34739837,3675.2,3674.6,35.0]
[1718015790142,8.1599,3675.2,3674.6,35.0]
[1718015790642,8.1599,3675.2,3674.7,3.0]
[1718015790882,0.18749837,3675.1,3674.7,3.0]
[1718015791036,8.1599,3675.0,3674.6,3.0]
[1718015791238,8.1599,3675.0,3674.8,35.0]
[1718015791438,8.1599,3675.0,3674.9,3.0]
[1718015791825,8.34722823,3675.0,3674.9,3.0]
[1718015792359,8.34722823,3675.0,3674.8,3.0]
[1718015792542,8.34722823,3675.0,3674.9,35.0]
[1718015792742,8.34722823,3675.0,3674.9,38.0]
[1718015797666,10.78052823,3675.0,3674.9,38.0]
[1718015797966,8.34722823,3675.0,3674.9,38.0]
[1718015807935,8.34722823,3675.0,3674.9,35.0]
[1718015808282,8.1599,3675.0,3674.9,35.0]
[1718015808727,8.34726407,3675.0,3674.9,35.0]
[1718015844263,2.72121,3674.9,3674.3,8.13348849]
[1718015844581,8.1599,3674.8,3674.4,3.0]
[1718015844754,8.3472551,3674.8,3674.5,35.0]
[1718015857650,11.0685551,3674.8,3674.5,35.0]
[1718015859485,2.72137,3674.7,3674.5,35.0]
[1718015859675,8.1599,3674.6,3674.5,35.0]
[1718015860171,8.34725957,3674.6,3674.5,35.0]
[1718015885510,11.5760415,3674.6,3674.5,35.0]
[1718015885701,2.72151,3674.5,3674.0,8.13348849]
[1718015885904,11.5760415,3674.6,3674.0,0.85348849]
[1718015885905,2.72162,3674.3,3674.0,0.85348849]
[1718015886113,8.1599,3674.2,3673.8,3.18968849]
[1718015886316,8.1599,3674.2,3674.1,35.0]
[1718015893735,8.34681184,3674.2,3674.1,35.0]
[1718015911151,8.34681184,3674.2,3674.1,35.0]
[1718015913651,8.34681184,3674.2,3674.1,34.8]
[1718015917252,11.79765502,3674.2,3673.6,8.13458357]
[1718015917454,11.79765502,3674.2,3673.6,7.28]
[1718015917822,11.79765502,3674.2,3673.7,35.0]
[1718015918450,2.72189,3674.0,3673.7,35.0]
[1718015918751,8.34632361,3673.9,3673.7,35.0]
[1718015920659,2.72197,3673.8,3673.7,35.0]
[1718015920825,10.88187,3673.8,3673.2,0.85458357]
[1718015921025,2.72212,3673.6,3673.2,0.85458357]
[1718015921327,8.1599,3673.5,3673.3,35.0]
[1718015921521,8.34618028,3673.5,3673.3,35.0]
[1718015952888,14.63478031,3673.5,3673.3,35.0]
[1718015954863,15.43478031,3673.5,3673.3,35.0]
[1718015963451,2.7224,3673.3,3672.7,8.13458357]
[1718015963657,8.1599,3673.2,3672.7,8.13458357]
[1718015963906,8.34581281,3673.2,3672.9,35.0]
[1718015964580,11.06830281,3673.2,3672.9,35.0]
[1718015964893,12.61176609,3673.2,3672.9,35.0]
[1718015968393,11.06830281,3673.2,3672.9,35.0]
[1718015969689,13.44380281,3673.2,3672.9,35.0]
[1718015971423,11.06830281,3673.2,3672.9,35.0]
[1718015974299,8.34581281,3673.2,3673.0,5.82127]
[1718015974524,8.34581281,3673.2,3673.1,2.2987]
[1718015975036,8.1599,3673.2,3673.1,37.2987]
[1718015975329,8.1599,3673.2,3673.1,38.43814476]
[1718015975842,8.1599,3673.2,3673.1,37.2987]
[1718015976438,8.1599,3673.2,3673.1,38.43814476]
[1718015978135,8.1599,3673.2,3673.1,37.2987]
[1718015978437,8.1599,3673.2,3673.1,38.43814476]
[1718015978837,8.1599,3673.2,3673.1,37.2987]
[1718015980516,8.1599,3673.2,3673.1,38.9534379]
[1718015980840,8.1599,3673.2,3673.1,38.0987]
[1718015981143,8.1599,3673.2,3673.1,38.9534701]
[1718015985813,8.1599,3673.2,3673.1,38.0987]
[1718015986504,8.1599,3673.2,3673.1,38.95327816]
[1718015987453,8.1599,3673.2,3673.1,38.0987]